Workbook

Sheet 1. Forside
A1: Assens Spildevand A/S
D8: Bilag A
D13: Indholdsfortegnelse
C16: Fane nr. 2 | D16: Samlet prisloft
C17: Fane nr. 3 | D17: Driftsomkostninger
C18: Fane nr. 4 | D18: Historiske investeringer
C19: Fane nr. 5 | D19: Gennemførte investeringer
C20: Fane nr. 6 | D20: Korrektion investeringer
C21: Fane nr. 7 | D21: Planlagte investeringer
C22: Fane nr. 8 | D22: 1:1 omkostninger
C23: Fane nr. 9 | D23: Miljø- og servicemål
C24: Fane nr. 10 | D24: Klimatilpasning
C25: Fane nr. 11 | D25: Nettofinansielle poster
C26: Fane nr. 12 | D26: Over- eller underdækning
C27: Fane nr. 13 | D27: Kontrol med indtægtsrammen og oversigt over ekstraordinære effektiviseringsgevinster

Sheet 2. Samlet prisloft
A1: ='1. Forside'!A1 -> Assens Spildevand A/S
B4: Fane 2. Samlet prisloft for 2015
B6: Driftsomkostninger
B7: Driftsomkostninger i prisloftet for 2014 | C7: ='3. Driftsomkostninger'!C20 -> 12925712.38 | D7: kr.
B8: Bortfald af væsentlige omkostninger | C8: =-'3. Driftsomkostninger'!C16 -> 0 | D8: kr.
B9: Korrektion for prisudviklingen 2014-2015 | C9: ='3. Driftsomkostninger'!C22 -> 10340.5699 | D9: kr.
B10: Forhøjelse til effektivt niveau iht. benchmarkingen | C10: ='3. Driftsomkostninger'!C28 -> 0 | D10: kr.
B11: Korrektion for generelt effektiviseringskrav | C11: =-'3. Driftsomkostninger'!C34 -> -56873.13447 | D11: kr.
B12: Korrektion for individuelt effektiviseringskrav | C12: =-'3. Driftsomkostninger'!C43 -> 0 | D12: kr.
B13: Driftsomkostninger i alt | C13: =SUM(C7:C12) -> 12879179.82 | D13: kr. | E13: =C13 -> 12879179.82 | F13: kr.
B14: Investeringer
B15: Tillæg for historiske investeringer | C15: ='4. Historiske investeringer'!C9 -> 42954935.5 | D15: kr.
B16: Tillæg for gennemførte investeringer i 2011-2013 | C16: ='5. Gennemførte investeringer'!F46 -> 4414936.33 | D16: kr.
B17: Korrektion af tillæg for planlagte investeringer vedrørende 2013 | C17: ='6. Korrektion investeringer'!C10 -> 1193386.321 | D17: kr.
B18: Tillæg for planlagte investeringer i 2014 og 2015 | C18: ='7. Planlagte investeringer'!F28 -> 2619906.667 | D18: kr.
B19: Investeringstillæg i alt | C19: =SUM(C15:C18) -> 51183164.82 | D19: kr. | E19: =C19 -> 51183164.82 | F19: kr.
B20: Øvrige omkostninger mv.
B21: Tillæg for 1:1 omkostninger i 2015 | C21: ='8. 1-1 omkostninger'!C9 -> 21879000 | D21: kr.
B22: Tillæg vedr. revisorerklæringer og DANVA/FVD-kontingent | C22: ='8. 1-1 omkostninger'!C17 -> 66200 | D22: kr.
B23: Korrektion ift. faktiske 1:1 omkostninger i 2013 | C23: ='8. 1-1 omkostninger'!C23 -> -3212668 | D23: kr.
B24: Tillæg for driftsomkostninger til miljø- og servicemål i 2015 | C24: ='9. Miljø- og servicemål'!C11 -> 3283140 | D24: kr.
B25: Korrektion ift. faktiske driftsomkostninger til miljø- og servicemål i 2013 | C25: ='9. Miljø- og servicemål'!C18 -> 368924 | D25: kr.
B26: Tillæg for driftsomkostninger til medfinansiering af klimatilpasningsprojekter i 2015 | C26: ='10. Klimatilpasning'!C9 -> 0 | D26: kr.
B27: Korrektion ift. faktiske omkostninger til medfinansiering af klimatilpasningsprojekter i 2013 | C27: ='10. Klimatilpasning'!C16 -> 0 | D27: kr.
B28: Tillæg/fradrag for nettofinansielle poster i 2015 | C28: ='11. Nettofinansielle poster'!C9 -> 1316000 | D28: kr.
B29: Korrektion ift. faktiske nettofinansielle poster i 2013 | C29: ='11. Nettofinansielle poster'!C16 -> -334018 | D29: kr.
B30: Øvrige omkostninger mv. i alt | C30: =SUM(C21:C29) -> 23366578 | D30: kr. | E30: =C30 -> 23366578 | F30: kr.
B31: Historisk over- eller underdækning
B32: Tillæg/fradrag for over- eller underdækning til og med 2010 | C32: ='12. Over- eller underdækning'!C11 -> 0 | D32: kr. | E32: =C32 -> 0 | F32: kr.
B33: Korrektion i forhold til tidligere indtægtsramme
B34: Korrektion for overholdelse af indtægtsramme i prisloft 2013 | C34: ='13. Kontrol med indtægtsrammen'!E27 -> 6654408.397 | D34: kr. | E34: =C34 -> 6654408.397 | F34: kr.
B35: Samlet prisloft
B36: Indtægtsramme i 2015 | E36: =SUM(E13:E34) -> 94083331.03 | F36: kr.
B37: Debiteret vandmængde i 2013 | E37: 1682064 | F37: m3
B38: Prisloft 2015 | E38: =E36/E37 -> 55.93326475 | F38: kr./m3

Sheet 3. Driftsomkostninger
A1: ='1. Forside'!A1 -> Assens Spildevand A/S
B4: Fane 3. Driftsomkostninger
B6: Driftsomkostningerne i prisloftet for 2014
B7: Korrigerede driftsomkostninger i prisloftet for 2013 (DOiPL 2013) | C7: 12734692 | D7: kr.
B8: Prisfremskrivning 1,5 pct. | C8: =0.015*SUM(C7:C7) -> 191020.38 | D8: kr.
B9: Generelt effektiviseringskrav (0 pct.) | C9: 0 | D9: kr.
B10: Individuelt effektiviseringskrav | C10: 0 | D10: kr.
B11: Driftsomkostningerne i prisloftet for 2014 (DOiPL 2014) | C11: =SUM(C7:C10) -> 12925712.38 | D11: kr.
B14: Korrektion for forventet bortfald af væsentlige omkostninger
B15: Selskabets indberettede bortfald af væsentlige omkostninger inden 2015 | C15: 0 | D15: kr.
B16: Korrektion for forventet bortfald | C16: =SUM(C15:C15) -> 0 | D16: kr.
B19: Korrektion for prisudviklingen fra 2014-2015
B20: Driftsomkostningerne i prisloftet for 2014 | C20: =C11-C16 -> 12925712.38 | D20: kr.
B21: Prisudvikling 2014 - 2015 | C21: 0.08 | D21: pct.
B22: Korrektion for prisudvikling | C22: =C20*(C21/100) -> 10340.5699 | D22: kr.
B25: Eventuel forhøjelse til effektivt niveau iht. benchmarkingen
B26: Selskabets effektive driftsomkostninger iht. benchmarkingen | C26: 11775324 | D26: kr.
B27: Selskabets pristalskorrigerede driftsomkostninger i 2015-niveau | C27: =C20+C22 -> 12936052.95 | D27: kr.
B28: Eventuel forhøjelse til effektivt niveau | C28: =IF(C27>C26,0,C26-C27) -> 0 | D28: kr.
B31: Korrektion for generelt effektiviseringskrav
B32: Driftsomkostningerne i prisloftet for 2014 | C32: =C20 -> 12925712.38 | D32: kr.
B33: Generelt effektiviseringskrav | C33: 0.44 | D33: pct.
B34: Endeligt generelt effektiviseringskrav | C34: =C32*(C33/100) -> 56873.13447 | D34: kr.
B37: Korrektion for individuelt effektiviseringskrav
B38: Rå effektiviseringspotentiale | C38: 1150388 | D38: kr.
B39: Effektiviseringspotentiale efter eventuel korrektion for særlige forhold | C39: 1150388 | D39: kr.
B40: Effektiviseringspotentiale efter forsigtighedshensyn | C40: 0 | D40: kr.
B41: Effektiviseringspotentiale efter eventuel korrektion for sammensætning af signifikante costdrivere | C41: 0 | D41: kr.
B42: Umiddelbart effektiviseringskrav | C42: =C41/4 -> 0 | D42: kr.
B43: Endeligt individuelt effektiviseringskrav | C43: =IF(C42>0.05*C20,0.05*C20,IF(C42<0.01*C20,0,C42)) -> 0 | D43: kr.

Sheet 4. Historiske investeringer
A1: ='3. Driftsomkostninger'!A1 -> Assens Spildevand A/S
B4: Fane 4. Historiske investeringer
B6: Tillæg for historiske investeringer
B7: Værdi af selskabets materielle anlægsaktiver pr. 1. januar 2010 | C7: 2016119547 | D7: kr.
B8: Den årlige standardafskrivning på de materielle anlægsaktiver iht. POLKA | C8: 42954935.5 | D8: kr.
B9: Tillæg i alt i 2015 | C9: =C8 -> 42954935.5 | D9: kr.

Sheet 5. Gennemførte investeringer
A1: ='4. Historiske investeringer'!A1 -> Assens Spildevand A/S
B4: Fane 5. Gennemførte investeringer i 2010 - 2013
B6: Tillæg for gennemførte investeringer i 2013
B7: Beskrivelse af investeringen | C7: Årstal | D7: Std. levetid (år) | E7: Anskaffelses-pris (kr.) | F7: Afskrivning
B8: Brønde | C8: 2013 | D8: 75 | E8: 9824621 | F8: =E8/D8 -> 130994.9467 | G8: kr.
B9: Forsinkelsesbassiner, lukkede med automatisk rensning og SRO Miljøklasse A (1.000-3.000 m3) - Konstruktioner | C9: 2013 | D9: 75 | E9: 6608985 | F9: =E9/D9 -> 88119.8 | G9: kr.
B10: Forsinkelsesbassiner, lukkede med automatisk rensning og SRO Miljøklasse A (1.000-3.000 m3) - Mek/EL | C10: 2013 | D10: 20 | E10: 565475 | F10: 28273.75 | G10: kr.
B11: Forsinkelsesbassiner, lukkede med automatisk rensning og SRO Miljøklasse A (1.000-3.000 m3) - SRO | C11: 2013 | D11: 10 | E11: 494790 | F11: 49479 | G11: kr.
B12: Jordbassin Klasse A | C12: 2013 | D12: 50 | E12: 1078680 | F12: 21573.6 | G12: kr.
B13: Jordbassin Klasse B | C13: 2013 | D13: 50 | E13: 177917 | F13: 3558.34 | G13: kr.
B14: Ledningsnet = Ø 200 mm | C14: 2013 | D14: 75 | E14: 15651175 | F14: 208682.3333 | G14: kr.
B15: Pumpestationer i brønde (< 6,25 m2), Konstruktioner | C15: 2013 | D15: 50 | E15: 1856304 | F15: 37126.08 | G15: kr.
B16: Pumpestationer i brønde (< 6,25 m2), Mek/EL | C16: 2013 | D16: 20 | E16: 642862 | F16: 32143.1 | G16: kr.
B17: Pumpestationer i brønde (< 6,25 m2), SRO | C17: 2013 | D17: 10 | E17: 2130351 | F17: 213035.1 | G17: kr.
B18: Pumpestationer i underjordiske bygværker ( | C18: 2013 | D18: 20 | E18: 589036 | F18: 29451.8 | G18: kr.
B19: Pumpestationer i underjordiske bygværker ( | C19: 2013 | D19: 10 | E19: 147259 | F19: 14725.9 | G19: kr.
B20: Pumpestationer m. overbygning (< 20 m2), SRO | C20: 2013 | D20: 10 | E20: 175041 | F20: 17504.1 | G20: kr.
B21: Strømpeforing = Ø 200 mm | C21: 2013 | D21: 50 | E21: 3001708 | F21: 60034.16 | G21: kr.
B22: Strømpeforing Ø 200 mm < Ledningsnet = Ø 500 mm | C22: 2013 | D22: 50 | E22: 1349409 | F22: 26988.18 | G22: kr.
B23: Strømpeforing Ø 500 mm < Ledningsnet = Ø 800 mm | C23: 2013 | D23: 50 | E23: 143865 | F23: 2877.3 | G23: kr.
B24: Tryksatte minipumpestationer (husstandssystemer) | C24: 2013 | D24: 30 | E24: 1436222 | F24: 47874.06667 | G24: kr.
B25: Ø 1200 mm < Ledningsnet = Ø 1600 mm | C25: 2013 | D25: 75 | E25: 2206691 | F25: 29422.54667 | G25: kr.
B26: Ø 200 mm < Ledningsnet = Ø 500 mm | C26: 2013 | D26: 75 | E26: 6422734 | F26: 85636.45333 | G26: kr.
B27: Ø 500 mm < Ledningsnet = Ø 800 mm | C27: 2013 | D27: 75 | E27: 5042972 | F27: 67239.62667 | G27: kr.
B28: Ø 800 mm < Ledningsnet = Ø 1000 mm | C28: 2013 | D28: 75 | E28: 1771194 | F28: 23615.92 | G28: kr.
B29: Brønde | C29: 2013 | D29: 40 | E29: 251171 | F29: 6279.275 | G29: kr.
B30: Jordbassin Klasse B | C30: 2013 | D30: 50 | E30: 574061 | F30: 11481.22 | G30: kr.
B31: Brønde | C31: 2013 | D31: 40 | E31: 22834 | F31: 570.85 | G31: kr.
B32: Jordbassin Klasse B | C32: 2013 | D32: 50 | E32: 243980 | F32: 4879.6 | G32: kr.
B33: Brønde | C33: 2013 | D33: 40 | E33: 7611 | F33: 190.275 | G33: kr.
B34: Jordbassin Klasse B | C34: 2013 | D34: 50 | E34: 337223 | F34: =E34/D34 -> 6744.46 | G34: kr.
B35: Brønde | C35: 2013 | D35: 40 | E35: 68501 | F35: 1712.525 | G35: kr.
B36: Brønde | C36: 2013 | D36: 40 | E36: 7611 | F36: 190.275 | G36: kr.
B37: Pumpestationer i brønde (< 6,25 m2), Konstruktioner | C37: 2013 | D37: 10 | E37: 95986 | F37: 9598.6 | G37: kr.
B38: Brønde | C38: 2013 | D38: 40 | E38: 15223 | F38: 380.575 | G38: kr.
B39: Jordbassin Klasse B | C39: 2013 | D39: 50 | E39: 314091 | F39: 6281.82 | G39: kr.
B40: Tryksatte minipumpestationer (husstandssystemer) | C40: 2013 | D40: 10 | E40: 35773 | F40: 3577.3 | G40: kr.
B41: Køretøjer, personbil | C41: 2013 | D41: 5 | E41: 145527 | F41: 29105.4 | G41: kr.
B42: Arbejdsplads | C42: 2013 | D42: 5 | E42: 1057028 | F42: 211405.6 | G42: kr.
B43: Mindre renseanlæg < 5.000 PE uden mulighed for opdeling | C43: 2013 | D43: 39 | E43: 58745 | F43: 1506.282051 | G43: kr.
B44: Tillæg for 2013 | F44: =SUM(F8:F43) -> 1512260.16 | G44: kr.
B45: Tillæg for 2010 - 2012 | F45: 2902676.17 | G45: kr.
B46: Samlet tillæg for gennemførte investeringer | F46: =F44+F45 -> 4414936.33 | G46: kr.

Sheet 6. Korrektion investeringer
A1: ='5. Gennemførte investeringer'!A1 -> Assens Spildevand A/S
B4: Fane 6. Korrektion af tillæg for planlagte investeringer
B6: Korrektion af tillæg for planlagte investeringer vedr. 2013
B7: Tillæg for planlagte investeringer i 2013 i prisloft 2013 | C7: 970967 | D7: kr.
B8: Tillæg for planlagte investeringer i 2013 i prisloft 2014 | C8: 860167 | D8: kr.
B9: Selskabets faktiske afskrivninger på gennemførte investeringer i 2013 | C9: ='5. Gennemførte investeringer'!F44 -> 1512260.16 | D9: kr.
B10: Korrektion af tillæg for planlagte investeringer vedr. 2013 | C10: =C9-C7+C9-C8 -> 1193386.321 | D10: kr.

Sheet 7. Planlagte investeringer
A1: ='6. Korrektion investeringer'!A1 -> Assens Spildevand A/S
B4: Fane 7. Planlagte investeringer
B6: Tillæg for planlagte investeringer i 2014 og 2015
B7: Beskrivelse af investeringen | C7: Årstal | D7: Std. levetid (år) | E7: Anskaffelses-pris (kr.) | F7: Afskrivning
B8: Arbejdsplads | C8: 2014 | D8: 5 | E8: 1400000 | F8: =E8/D8 -> 280000 | G8: kr.
B9: Mindre renseanlæg < 5.000 PE uden mulighed for opdeling | C9: 2014 | D9: 40 | E9: 200000 | F9: =E9/D9 -> 5000 | G9: kr.
B10: Pumpestationer i brønde (< 6,25 m2), Konstruktioner | C10: 2014 | D10: 50 | E10: 2258000 | F10: 45160 | G10: kr.
B11: Pumpestationer i brønde (< 6,25 m2), Mek/EL | C11: 2014 | D11: 20 | E11: 1129000 | F11: 56450 | G11: kr.
B12: Pumpestationer i brønde (< 6,25 m2), SRO | C12: 2014 | D12: 10 | E12: 2822500 | F12: 282250 | G12: kr.
B13: Strømpeforing = Ø 200 mm | C13: 2014 | D13: 50 | E13: 5080500 | F13: 101610 | G13: kr.
B14: Ø 200 mm < Ledningsnet = Ø 500 mm | C14: 2014 | D14: 75 | E14: 45160000 | F14: 602133.3333 | G14: kr.
B15: Jordbassin Klasse A | C15: 2014 | D15: 50 | E15: 2700000 | F15: 54000 | G15: kr.
B16: Køretøjer, små lastvogne (< 3.500 kg.) | C16: 2014 | D16: 5 | E16: 85000 | F16: 17000 | G16: kr.
B17: Strømpeforing = Ø 200 mm | C17: 2015 | D17: 50 | E17: 4135500 | F17: 82710 | G17: kr.
B18: Ledningsnet = Ø 200 mm | C18: 2015 | D18: 75 | E18: 36760000 | F18: 490133.3333 | G18: kr.
B19: Pumpestationer i brønde (< 6,25 m2), Mek/EL | C19: 2015 | D19: 20 | E19: 919000 | F19: 45950 | G19: kr.
B20: Pumpestationer i brønde (< 6,25 m2), Konstruktioner | C20: 2015 | D20: 50 | E20: 1838000 | F20: 36760 | G20: kr.
B21: Pumpestationer i brønde (< 6,25 m2), SRO | C21: 2015 | D21: 10 | E21: 2297500 | F21: 229750 | G21: kr.
B22: Jordbassin Klasse A | C22: 2015 | D22: 50 | E22: 500000 | F22: 10000 | G22: kr.
B23: Køretøjer, små lastvogne (< 3.500 kg.) | C23: 2015 | D23: 5 | E23: 380000 | F23: 76000 | G23: kr.
B24: Arbejdsplads | C24: 2015 | D24: 5 | E24: 1000000 | F24: 200000 | G24: kr.
B25: Mindre renseanlæg < 5.000 PE uden mulighed for opdeling | C25: 2015 | D25: 40 | E25: 200000 | F25: 5000 | G25: kr.
B26: Tillæg for 2014 | F26: =SUMIF(C8:C25,"2014",F8:F25) -> 1443603.333 | G26: kr.
B27: Tillæg for 2015 | F27: =SUMIF(C8:C25,"2015",F8:F25) -> 1176303.333 | G27: kr.
B28: Tillæg i alt | F28: =F26+F27 -> 2619906.667 | G28: kr.

Sheet 8. 1-1 omkostninger
A1: ='7. Planlagte investeringer'!A1 -> Assens Spildevand A/S
B4: Fane 8. 1:1 omkostninger
B6: Tillæg for budgetterede 1:1 omkostninger i 2015
B7: Betaling til Forsyningssekretariatet | C7: 33000 | D7: kr.
B8: Køb af varer og tjenesteydelser hos et andet prisloftreguleret vandselskab | C8: 21846000 | D8: kr.
B9: Tillæg i alt | C9: =SUM(C7:C8) -> 21879000 | D9: kr.
B14: Tillæg for budgetterede nødvendige udgifter til revisorerklæringer samt ordinært medlemskab af DANVA og FVD i 2015
B15: Betaling for ordinært medlemskab af DANVA/FVD | C15: 39200 | D15: kr.
B16: Betaling for revisorerklæringer | C16: 27000 | D16: kr.
B17: Tillæg i alt | C17: =SUM(C15:C16) -> 66200 | D17: kr.
B20: Korrektion af tillæg for faktiske 1:1 omkostninger (inkl. revisorerklæringer og ordinært medlemskab af DANVA/FVD) i 2013
B21: Selskabets faktiske 1:1 omkostninger mv. i 2013, jf. reguleringsregnskabet | C21: 18367832 | D21: kr.
B22: Tillæg for budgetterede 1:1 omkostninger mv. i prisloft 2013 | C22: 21580500 | D22: kr.
B23: Korrektion af tillæg for budgetterede 1:1 omkostninger mv. i 2013 | C23: =C21-C22 -> -3212668 | D23: kr.

Sheet 9. Miljø- og servicemål
A1: ='8. 1-1 omkostninger'!A1 -> Assens Spildevand A/S
B4: Fane 9. Driftsomkostninger til miljø- og servicemål
B6: Tillæg for budgetterede driftsomkostninger til miljø- og servicemål i 2015
B7: Registrering af ledningsnet | C7: 3000000 | D7: kr.
B8: Indsats mod svovlbrinte | C8: 187500 | D8: kr.
B9: Rottebekæmpelse | C9: 80640 | D9: kr.
B10: SMS-service | C10: 15000 | D10: kr.
B11: Tillæg i alt | C11: =SUM(C7:C10) -> 3283140 | D11: kr.
B15: Korrektion af tillæg for faktiske driftsomkostninger til miljø- og servicemål i 2013
B16: Selskabets faktiske driftsomkostninger til miljø- og servicemål i 2013, jf. reguleringsregnskabet | C16: 3368924 | D16: kr.
B17: Tillæg for budgetterede driftsomkostninger til miljø- og servicemål i prisloft 2013 | C17: 3000000 | D17: kr.
B18: Korrektion af tillæg for budgetterede driftsomkostninger til miljø- og servicemål i 2013 | C18: =C16-C17 -> 368924 | D18: kr.

Sheet 10. Klimatilpasning
A1: ='9. Miljø- og servicemål'!A1 -> Assens Spildevand A/S
B4: Fane 10. Medfinansiering af klimatilpasningsprojekter
B7: Tillæg for budgetterede omkostninger til medfinansiering af klimatilpasningsprojekter i 2015
C8: 0 | D8: kr.
B9: Tillæg i alt | C9: =SUM(C8:C8) -> 0 | D9: kr.
B13: Korrektion af tillæg for faktiske omkostninger til medfinansiering af klimatilpasningsprojekter i 2013
B14: Selskabets faktiske driftsomkostninger til klimatilpasningsprojekter i 2013, jf. reguleringsregnskabet | C14: 0 | D14: kr.
B15: Tillæg for budgetterede driftsomkostninger til klimatilpasningsprojekter i prisloft 2013 | C15: 0 | D15: kr.
B16: Korrektion af tillæg for budgetterede omkostninger til klimatilpasningsprojekter i 2013 | C16: =C14-C15 -> 0 | D16: kr.

Sheet 11. Nettofinansielle poster
A1: ='10. Klimatilpasning'!A1 -> Assens Spildevand A/S
B4: Fane 11. Nettofinansielle poster
B6: Tillæg for budgetterede nettofinansielle poster i 2015
B7: Budgetterede renteudgifter og gebyrer i 2015 | C7: 1341000 | D7: kr.
B8: Budgetterede renteindtægter i 2015 | C8: 25000 | D8: kr.
B9: Tillæg/fradrag i alt | C9: =C7-C8 -> 1316000 | D9: kr.
B13: Korrektion af tillæg for faktiske nettofinansielle poster i 2013
B14: Selskabets faktiske nettofinansielle poster i 2013, jf. reguleringsregnskabet | C14: 665982 | D14: kr.
B15: Tillæg for budgetterede nettofinansielle poster i prisloft 2013 | C15: 1000000 | D15: kr.
B16: Korrektion af tillæg for budgetterede nettofinansielle poster i 2013 | C16: =C14-C15 -> -334018 | D16: kr.

Sheet 12. Over- eller underdækning (hidden)
A1: ='11. Nettofinansielle poster'!A1 -> Assens Spildevand A/S
B4: Fane 12. Over- eller underdækning til og med 2010
B6: Tillæg/fradrag for over- eller underdækning til og med 2010
B7: Opgjort over- eller underdækning per 31. december 2010 | C7: 0 | D7: kr.
B8: Heraf beløb indregnet i prislofterne for 2012 - 2014 | C8: 0 | D8: kr.
B9: Endnu ikke indregnet over- eller underdækning | C9: =C7-C8 -> 0 | D9: kr.
B10: Resterende indregningsperiode (fastsat i prisloftet for 2012) | C10: 0 | D10: år
B11: Tillæg/fradrag i alt | C11: =IF(C7=0,0,C9/C10) -> 0 | D11: kr.

Sheet 13. Kontrol med indtægtsrammen
A1: ='12. Over- eller underdækning'!A1 -> Assens Spildevand A/S
B4: Fane 13. Korrektion for overholdelse af indtægtsrammen i prisloftet for 2013
B6: Samlet opgørelse vedrørende overholdelse af indtægtsrammen i prisloftet for 2013
B7: Indtægtsramme i prisloftet for 2013 | E7: 84847062.4 | F7: kr.
B8: Ikke anvendt likviditet vedrørende investeringer i 2013
B9: Tillæg for historiske investeringer | C9: 42457857 | D9: kr.
B10: Tillæg for gennemførte investeringer i 2011 | C10: 1880902 | D10: kr.
B11: Korrektion af tillæg for planlagte investeringer i 2011 | C11: 1503726 | D11: kr.
B12: Tillæg for planlagte investeringer i 2012 og 2013 | C12: 1952510 | D12: kr.
B13: Indtægter fra tilslutningsbidrag | C13: 5010318 | D13: kr.
B14: Indtægter fra salg af anlægsaktiver | C14: 0 | D14: kr.
B15: Erstatninger vedr. anlægsaktiver mv. | C15: 0 | D15: kr.
B16: Ekstraordinær effektiviseringsgevinst anvendt til investeringer | C16: 0 | D16: kr.
B17: Udgifter til investeringer | C17: -52380904 | D17: kr.
B18: Ikke anvendt likviditet vedr. investeringer i alt | C18: =SUM(C9:C17) -> 424409 | D18: kr. | E18: =IF(C18<0,0,-C18) -> -424409 | F18: kr.
B19: Ekstraordinære effektiviseringsgevinster anvendt til takstnedsættelse
B20: Ekstraordinær effektiviseringsgevinst anvendt til takstnedsættelse | C20: 0 | D20: kr. | E20: =-C20 -> 0 | F20: kr.
B21: Korrektion af ikke opkrævet tillæg fra 2011 i prisloft 2013
B22: Korrektion af ikke opkrævet tillæg fra 2011 i prisloft 2013 | C22: 0 | D22: kr. | E22: =-C22 -> 0 | F22: kr.
B23: Indtægter fra primære aktiviteter mv.
B24: Indtægter fra kubikmetertakster, faste takster, særbidrag, målergebyrer samt andre takster og gebyrer | C24: 72791279 | D24: kr.
B25: Andre indtægter i prisloftåret, som selskabet har opnået i forbindelse med eller som følge af selskabets primære aktiviteter | C25: =139138+4837828 -> 4976966 | D25: kr.
B26: Indtægter fra primære aktiviteter mv. i alt | C26: =SUM(C24:C25) -> 77768245 | D26: kr. | E26: =-C26 -> -77768245 | F26: kr.
B27: Tillæg/fradrag i prisloftet for 2015 i alt | E27: =E7+E18+E20+E22+E26 -> 6654408.397 | F27: kr.
B31: Oversigt over ekstraordinære effektiviseringsgevinster
C33: 2012 | E33: 2013 | G33: 2014 | I33: 2015 | K33: 2016
B34: Indhentet ekstraordinær effektiviseringsgevinst | C34: 2230759 | D34: kr. | E34: 2484624 | F34: kr. | H34: kr. | J34: kr. | L34: kr.
B35: Gevinst anvendt til investeringer | C35: 2230759 | D35: kr. | E35: 0 | F35: kr. | H35: kr. | J35: kr. | L35: kr.
B36: Gevinst anvendt til takstnedsættelse | C36: 0 | D36: kr. | E36: 0 | F36: kr. | H36: kr. | J36: kr. | L36: kr.
B37: Korrektion for effektiviseringsgevinst der ikke er anvendt inden 4 år | C37: 0 | D37: kr. | E37: 0 | F37: kr. | H37: kr. | J37: kr. | K37: =IF(C38>SUM(E35:I36),C38-SUM(E35:I36),0)*-1 -> 0 | L37: kr.
B38: Resterende gevinst | C38: =C34-C35-C36 -> 0 | D38: kr. | E38: =C38+E34-E35-E36 -> 2484624 | F38: kr. | G38: =E38+G34-G35-G36 -> 2484624 | H38: kr. | I38: =G38+I34-I35-I36 -> 2484624 | J38: kr. | K38: =I38+K34-K35-K36+K37 -> 2484624 | L38: kr.
